[Event "Early-Titled-Tuesday-Blitz-February-20-2024"]
[Site "Chess.com"]
[Date "2024.02.20"]
[Round "10"]
[White "Egor_Koshulyan"]
[Black "joshdaruca"]
[Result "0-1"]
[WhiteElo "2621"]
[BlackElo "2770"]
[TimeControl "180+1"]
[EndTime "9:58:23 PST"]
[Termination "joshdaruca won on time"]

1. e4 {[%clk 0:03:00.9]} 1... c5 {[%clk 0:02:43]} 2. Nf3 {[%clk 0:03:00.9]} 2...
d6 {[%clk 0:02:41.7]} 3. d4 {[%clk 0:03:00.9]} 3... cxd4 {[%clk 0:02:42.6]} 4.
Qxd4 {[%clk 0:03:01.1]} 4... Nc6 {[%clk 0:02:40.9]} 5. Bb5 {[%clk 0:03:01]} 5...
Bd7 {[%clk 0:02:41.6]} 6. Bxc6 {[%clk 0:03:01.3]} 6... Bxc6 {[%clk 0:02:42.5]}
7. Nc3 {[%clk 0:03:01.2]} 7... e5 {[%clk 0:02:41.5]} 8. Qd3 {[%clk 0:03:01]}
8... h6 {[%clk 0:02:40.1]} 9. O-O {[%clk 0:02:58.5]} 9... Nf6 {[%clk 0:02:39.9]}
10. Nd2 {[%clk 0:02:59.2]} 10... Qa5 {[%clk 0:02:22]} 11. Nc4 {[%clk 0:02:57.4]}
11... Qa6 {[%clk 0:02:22.6]} 12. Nxd6+ {[%clk 0:02:52.8]} 12... Bxd6 {[%clk
0:02:23.5]} 13. Qxd6 {[%clk 0:02:53.7]} 13... Bxe4 {[%clk 0:01:48.3]} 14. Nxe4
{[%clk 0:02:40.8]} 14... Nxe4 {[%clk 0:01:49.2]} 15. Qxe5+ {[%clk 0:02:41.1]}
15... Qe6 {[%clk 0:01:48.8]} 16. Qb5+ {[%clk 0:02:40.9]} 16... Qc6 {[%clk
0:01:39.2]} 17. Qb4 {[%clk 0:02:06.4]} 17... a5 {[%clk 0:01:30.2]} 18. Qa3
{[%clk 0:02:05]} 18... f5 {[%clk 0:01:29.7]} 19. Bf4 {[%clk 0:01:59.8]} 19...
Kf7 {[%clk 0:01:27.6]} 20. Qb3+ {[%clk 0:01:55.9]} 20... Kg6 {[%clk 0:01:25]}
21. Rad1 {[%clk 0:01:51]} 21... a4 {[%clk 0:01:12.7]} 22. Qb4 {[%clk 0:00:54.3]}
22... Rhd8 {[%clk 0:01:12.8]} 23. c3 {[%clk 0:00:46.8]} 23... Kh7 {[%clk
0:01:02.6]} 24. h3 {[%clk 0:00:42.6]} 24... Nc5 {[%clk 0:00:59.5]} 25. Be5
{[%clk 0:00:37.8]} 25... Nd3 {[%clk 0:00:57.6]} 26. Qe7 {[%clk 0:00:37.3]} 26...
Rd7 {[%clk 0:00:55.2]} 27. Qh4 {[%clk 0:00:19.3]} 27... Nxe5 {[%clk 0:00:53.9]}
28. Rde1 {[%clk 0:00:20.2]} 28... Ng6 {[%clk 0:00:52.1]} 29. Qh5 {[%clk
0:00:20.4]} 29... Qxg2+ {[%clk 0:00:46.6]} 30. Kxg2 {[%clk 0:00:19.9]} 30...
Nf4+ {[%clk 0:00:47.5]} 31. Kf3 {[%clk 0:00:20.6]} 31... Nxh5 {[%clk 0:00:48.4]}
32. Re5 {[%clk 0:00:21.5]} 32... Kg6 {[%clk 0:00:43.5]} 33. Rfe1 {[%clk
0:00:20.3]} 33... Nf6 {[%clk 0:00:42.2]} 34. Rb5 {[%clk 0:00:19.1]} 34... a3
{[%clk 0:00:38.7]} 35. Re6 {[%clk 0:00:12.8]} 35... axb2 {[%clk 0:00:37.9]} 36.
Rxb2 {[%clk 0:00:13.7]} 36... Ra3 {[%clk 0:00:37.9]} 37. Reb6 {[%clk 0:00:09]}
37... Rxc3+ {[%clk 0:00:36.7]} 38. Kg2 {[%clk 0:00:09.9]} 38... Ra3 {[%clk
0:00:36.2]} 39. R6b5 {[%clk 0:00:05.1]} 39... Ne4 {[%clk 0:00:34.9]} 40. h4
{[%clk 0:00:03.2]} 40... Nf6 {[%clk 0:00:34.1]} 41. f3 {[%clk 0:00:02.3]} 41...
Kh5 {[%clk 0:00:34.1]} 42. Rxf5+ {[%clk 0:00:02.4]} 42... Kg6 {[%clk 0:00:32.1]}
43. Rfb5 {[%clk 0:00:03.1]} 43... Kh7 {[%clk 0:00:31.8]} 44. Kg3 {[%clk
0:00:03.1]} 44... Rdd3 {[%clk 0:00:32.1]} 45. Rf2 {[%clk 0:00:03.1]} 45... Ne4+
{[%clk 0:00:32.7]} 0-1

[Event "Early-Titled-Tuesday-Blitz-February-20-2024"]
[Site "Chess.com"]
[Date "2024.02.20"]
[Round "10"]
[White "cukin84"]
[Black "gm_rashid"]
[Result "0-1"]
[WhiteElo "2235"]
[BlackElo "2441"]
[TimeControl "180+1"]
[EndTime "9:58:23 PST"]
[Termination "gm_rashid won by resignation"]

1. e4 {[%clk 0:03:00.9]} 1... d6 {[%clk 0:02:59.5]} 2. d4 {[%clk 0:02:54.8]}
2... g6 {[%clk 0:02:58.9]} 3. Nc3 {[%clk 0:02:54]} 3... Bg7 {[%clk 0:02:59.4]}
4. Be3 {[%clk 0:02:53.5]} 4... Nf6 {[%clk 0:02:58.5]} 5. Qd2 {[%clk 0:02:52.2]}
5... c6 {[%clk 0:02:57.7]} 6. f3 {[%clk 0:02:52.2]} 6... Nbd7 {[%clk 0:02:49]}
7. g4 {[%clk 0:02:48.9]} 7... b5 {[%clk 0:02:48.1]} 8. h4 {[%clk 0:02:45.8]}
8... h5 {[%clk 0:02:39.5]} 9. Be2 {[%clk 0:02:41.4]} 9... Nb6 {[%clk 0:02:34.8]}
10. g5 {[%clk 0:02:35]} 10... Nfd7 {[%clk 0:02:33]} 11. d5 {[%clk 0:02:31]}
11... Nc4 {[%clk 0:02:10.8]} 12. Bxc4 {[%clk 0:02:29.8]} 12... bxc4 {[%clk
0:02:08.6]} 13. dxc6 {[%clk 0:02:30]} 13... Ne5 {[%clk 0:02:07]} 14. Bd4 {[%clk
0:02:15.2]} 14... O-O {[%clk 0:02:04.7]} 15. Bxe5 {[%clk 0:02:13.7]} 15... Bxe5
{[%clk 0:02:03.6]} 16. f4 {[%clk 0:02:06.9]} 16... Bg7 {[%clk 0:02:01.4]} 17.
Nge2 {[%clk 0:02:03.3]} 17... Qb6 {[%clk 0:02:00.6]} 18. Nd5 {[%clk 0:01:59.9]}
18... Qd8 {[%clk 0:01:59.5]} 19. c7 {[%clk 0:01:58.7]} 19... Qd7 {[%clk
0:01:56.1]} 20. Qb4 {[%clk 0:01:47.7]} 20... e6 {[%clk 0:01:44]} 21. Nf6+ {[%clk
0:01:47.1]} 21... Bxf6 {[%clk 0:01:44.1]} 22. gxf6 {[%clk 0:01:48]} 22... Qxc7
{[%clk 0:01:44.5]} 23. O-O-O {[%clk 0:01:29.4]} 23... Rd8 {[%clk 0:01:42.1]} 24.
Nd4 {[%clk 0:01:23.8]} 24... Rb8 {[%clk 0:01:37.9]} 25. Qc3 {[%clk 0:01:23.3]}
25... Bb7 {[%clk 0:01:30.4]} 26. Rde1 {[%clk 0:01:13.4]} 26... Qc5 {[%clk
0:01:18.3]} 27. f5 {[%clk 0:01:12.4]} 27... exf5 {[%clk 0:01:15.5]} 28. exf5
{[%clk 0:01:00.4]} 28... Bxh1 {[%clk 0:01:14.3]} 29. fxg6 {[%clk 0:00:59.8]}
29... fxg6 {[%clk 0:00:55]} 30. Rxh1 {[%clk 0:00:56.4]} 30... Qe5 {[%clk
0:00:52.5]} 31. Rg1 {[%clk 0:00:53.5]} 31... Qxf6 {[%clk 0:00:47.5]} 32. Qxc4+
{[%clk 0:00:51]} 32... d5 {[%clk 0:00:46.7]} 33. Qd3 {[%clk 0:00:46.2]} 33...
Kh7 {[%clk 0:00:43.7]} 34. c3 {[%clk 0:00:36.5]} 34... Rf8 {[%clk 0:00:43.5]}
35. Kb1 {[%clk 0:00:32.5]} 35... Rbe8 {[%clk 0:00:42.9]} 36. a3 {[%clk
0:00:31.6]} 36... Re4 {[%clk 0:00:38.8]} 37. Rg5 {[%clk 0:00:20.4]} 37... Qf1+
{[%clk 0:00:36.7]} 38. Qxf1 {[%clk 0:00:19.3]} 38... Rxf1+ {[%clk 0:00:37.6]}
39. Ka2 {[%clk 0:00:19.1]} 39... Rxh4 {[%clk 0:00:38.3]} 40. Rxd5 {[%clk
0:00:18.1]} 40... Rh2 {[%clk 0:00:30.5]} 41. Ne6 {[%clk 0:00:17.1]} 41... Rff2
{[%clk 0:00:27.3]} 42. Rb5 {[%clk 0:00:17.2]} 42... h4 {[%clk 0:00:25]} 43. Ng5+
{[%clk 0:00:17.1]} 43... Kh6 {[%clk 0:00:23.7]} 44. Ne4 {[%clk 0:00:17.2]} 44...
Re2 {[%clk 0:00:22.9]} 45. Ng5 {[%clk 0:00:15.4]} 45... Rxb2+ {[%clk 0:00:18.5]}
46. Rxb2 {[%clk 0:00:14.9]} 46... Rxb2+ {[%clk 0:00:19.4]} 47. Kxb2 {[%clk
0:00:15.6]} 47... Kxg5 {[%clk 0:00:20]} 0-1

[Event "Early-Titled-Tuesday-Blitz-February-20-2024"]
[Site "Chess.com"]
[Date "2024.02.20"]
[Round "10"]
[White "Journey_to_GrandMaster_YT"]
[Black "mertfelin"]
[Result "1-0"]
[WhiteElo "2501"]
[BlackElo "2341"]
[TimeControl "180+1"]
[EndTime "9:58:24 PST"]
[Termination "Journey_to_GrandMaster_YT won by resignation"]

1. d4 {[%clk 0:03:00]} 1... d5 {[%clk 0:03:00.3]} 2. c4 {[%clk 0:02:59.6]} 2...
e6 {[%clk 0:03:00.9]} 3. Nc3 {[%clk 0:03:00]} 3... Nf6 {[%clk 0:03:01.4]} 4. Bg5
{[%clk 0:02:58.5]} 4... Be7 {[%clk 0:02:58.4]} 5. e3 {[%clk 0:02:57.3]} 5... h6
{[%clk 0:02:58.9]} 6. Bh4 {[%clk 0:02:57.3]} 6... O-O {[%clk 0:02:58.5]} 7. Qc2
{[%clk 0:02:57.6]} 7... dxc4 {[%clk 0:02:47.7]} 8. Bxc4 {[%clk 0:02:57.4]} 8...
a6 {[%clk 0:02:48.5]} 9. a4 {[%clk 0:02:55]} 9... Nbd7 {[%clk 0:02:47.9]} 10.
Rd1 {[%clk 0:02:53.4]} 10... Qe8 {[%clk 0:02:41.9]} 11. e4 {[%clk 0:02:10.7]}
11... e5 {[%clk 0:02:17.1]} 12. Nf3 {[%clk 0:02:03.6]} 12... exd4 {[%clk
0:02:12.8]} 13. Nxd4 {[%clk 0:02:01]} 13... Ne5 {[%clk 0:02:13.2]} 14. Be2
{[%clk 0:01:57.7]} 14... Ng6 {[%clk 0:02:13]} 15. Bg3 {[%clk 0:01:56.9]} 15...
c6 {[%clk 0:01:59.5]} 16. O-O {[%clk 0:01:55.3]} 16... Bb4 {[%clk 0:01:54.4]}
17. f3 {[%clk 0:01:33.5]} 17... Qd8 {[%clk 0:01:47.4]} 18. Ne6 {[%clk
0:01:22.2]} 18... Qe7 {[%clk 0:01:45.2]} 19. Nxf8 {[%clk 0:01:16.5]} 19... Nxf8
{[%clk 0:01:45.6]} 20. Kh1 {[%clk 0:01:12.2]} 20... Be6 {[%clk 0:01:45.5]} 21.
e5 {[%clk 0:01:09.7]} 21... Nd5 {[%clk 0:01:43.2]} 22. Nxd5 {[%clk 0:01:09]}
22... cxd5 {[%clk 0:01:43.7]} 23. f4 {[%clk 0:01:05.8]} 23... Rc8 {[%clk
0:01:42.3]} 24. Qd3 {[%clk 0:01:01.8]} 24... g6 {[%clk 0:01:42.8]} 25. Rc1
{[%clk 0:00:58.2]} 25... Rd8 {[%clk 0:01:41.2]} 26. Bf2 {[%clk 0:00:48.4]} 26...
Nd7 {[%clk 0:01:32.6]} 27. g4 {[%clk 0:00:43.2]} 27... d4 {[%clk 0:01:24.6]} 28.
Bf3 {[%clk 0:00:36.5]} 28... Nc5 {[%clk 0:01:21.4]} 29. Qd1 {[%clk 0:00:34.5]}
29... Bb3 {[%clk 0:01:08.9]} 30. Qe2 {[%clk 0:00:31]} 30... d3 {[%clk
0:01:08.4]} 31. Qe3 {[%clk 0:00:22.5]} 31... d2 {[%clk 0:01:09]} 32. Rxc5 {[%clk
0:00:20.2]} 32... Bxc5 {[%clk 0:00:44.7]} 33. Qxb3 {[%clk 0:00:20.3]} 33... Bxf2
{[%clk 0:00:34.5]} 34. Rxf2 {[%clk 0:00:21.2]} 34... Qc5 {[%clk 0:00:35.2]} 35.
Rf1 {[%clk 0:00:21.4]} 35... Rd4 {[%clk 0:00:29.4]} 36. e6 {[%clk 0:00:20.1]}
36... Rxf4 {[%clk 0:00:28.7]} 37. exf7+ {[%clk 0:00:18.9]} 37... Kf8 {[%clk
0:00:28.9]} 38. Kg2 {[%clk 0:00:15.5]} 38... Rxf7 {[%clk 0:00:28.9]} 39. Qd1
{[%clk 0:00:13.8]} 39... Qe3 {[%clk 0:00:21.1]} 40. Bxb7 {[%clk 0:00:12.7]} 1-0

[Event "Early-Titled-Tuesday-Blitz-February-20-2024"]
[Site "Chess.com"]
[Date "2024.02.20"]
[Round "10"]
[White "fabianvivasz"]
[Black "marsofsilva"]
[Result "1-0"]
[WhiteElo "2368"]
[BlackElo "2183"]
[TimeControl "180+1"]
[EndTime "9:58:25 PST"]
[Termination "fabianvivasz won by resignation"]

1. c4 {[%clk 0:02:55.8]} 1... e6 {[%clk 0:02:59.6]} 2. Nf3 {[%clk 0:02:54.6]}
2... d5 {[%clk 0:02:59.2]} 3. g3 {[%clk 0:02:52.1]} 3... Nf6 {[%clk 0:02:57.2]}
4. Bg2 {[%clk 0:02:50.5]} 4... dxc4 {[%clk 0:02:57]} 5. Qa4+ {[%clk 0:02:27.2]}
5... Bd7 {[%clk 0:02:56.1]} 6. Qxc4 {[%clk 0:02:26.8]} 6... b5 {[%clk
0:02:53.2]} 7. Qc2 {[%clk 0:02:26]} 7... c5 {[%clk 0:02:44.5]} 8. Ne5 {[%clk
0:02:18.5]} 8... Nd5 {[%clk 0:02:41.7]} 9. Nc3 {[%clk 0:02:16]} 9... Nc6 {[%clk
0:02:00.3]} 10. Nxf7 {[%clk 0:01:29.7]} 10... Kxf7 {[%clk 0:01:48.4]} 11. Nxd5
{[%clk 0:01:29.5]} 11... exd5 {[%clk 0:01:31.6]} 12. Bxd5+ {[%clk 0:01:29.4]}
12... Ke8 {[%clk 0:01:27.4]} 13. Qe4+ {[%clk 0:01:28.1]} 13... Qe7 {[%clk
0:01:15.7]} 14. Bxc6 {[%clk 0:01:27.9]} 14... Qxe4 {[%clk 0:01:15.2]} 15. Bxe4
{[%clk 0:01:28.8]} 15... Rc8 {[%clk 0:01:12.5]} 16. d3 {[%clk 0:01:26.4]} 16...
Bd6 {[%clk 0:01:09.6]} 17. Be3 {[%clk 0:01:18.1]} 17... Ke7 {[%clk 0:00:56.3]}
18. Rc1 {[%clk 0:01:17]} 18... Rhe8 {[%clk 0:00:53.9]} 19. Bxh7 {[%clk
0:01:12.7]} 19... Kf8 {[%clk 0:00:49.9]} 20. Be4 {[%clk 0:01:09.6]} 20... c4
{[%clk 0:00:47.4]} 21. O-O {[%clk 0:01:05.1]} 21... Bh3 {[%clk 0:00:33.6]} 22.
Bg2 {[%clk 0:00:58.6]} 22... Bg4 {[%clk 0:00:31.9]} 23. Rfe1 {[%clk 0:00:50.4]}
23... Bb4 {[%clk 0:00:31.2]} 24. dxc4 {[%clk 0:00:29.9]} 24... Bxe1 {[%clk
0:00:30.4]} 25. Rxe1 {[%clk 0:00:30.2]} 25... Rxc4 {[%clk 0:00:27.2]} 26. h3
{[%clk 0:00:22.4]} 26... Bf5 {[%clk 0:00:20.5]} 27. Bxa7 {[%clk 0:00:21.9]}
27... Rc2 {[%clk 0:00:19.8]} 28. Bd5 {[%clk 0:00:05.8]} 28... Rxb2 {[%clk
0:00:16.9]} 29. Bc5+ {[%clk 0:00:05.7]} 29... Re7 {[%clk 0:00:14.6]} 30. e4
{[%clk 0:00:05.8]} 30... Bg6 {[%clk 0:00:13.7]} 31. Re3 {[%clk 0:00:05.8]} 31...
Ke8 {[%clk 0:00:13.1]} 32. Bxe7 {[%clk 0:00:05.4]} 32... Kxe7 {[%clk 0:00:14]}
33. Rb3 {[%clk 0:00:05.2]} 33... Rxa2 {[%clk 0:00:13.3]} 34. Rxb5 {[%clk
0:00:05.2]} 34... Rd2 {[%clk 0:00:12.5]} 35. Rb7+ {[%clk 0:00:04.9]} 35... Kf6
{[%clk 0:00:12.6]} 36. Rb6+ {[%clk 0:00:05.2]} 36... Kg5 {[%clk 0:00:10.1]} 37.
h4+ {[%clk 0:00:05.4]} 37... Kh6 {[%clk 0:00:10.5]} 38. Bf7 {[%clk 0:00:05.7]}
1-0

[Event "Early-Titled-Tuesday-Blitz-February-20-2024"]
[Site "Chess.com"]
[Date "2024.02.20"]
[Round "10"]
[White "agvega14"]
[Black "WiseKing_08"]
[Result "0-1"]
[WhiteElo "2217"]
[BlackElo "2416"]
[TimeControl "180+1"]
[EndTime "9:58:26 PST"]
[Termination "WiseKing_08 won by resignation"]

1. d4 {[%clk 0:02:54.1]} 1... d5 {[%clk 0:02:58.7]} 2. c4 {[%clk 0:02:53.7]}
2... c6 {[%clk 0:02:59]} 3. Nc3 {[%clk 0:02:54.6]} 3... Nf6 {[%clk 0:02:59.2]}
4. e3 {[%clk 0:02:55.2]} 4... Bf5 {[%clk 0:02:58.6]} 5. cxd5 {[%clk 0:02:54.5]}
5... cxd5 {[%clk 0:02:58.8]} 6. Qb3 {[%clk 0:02:54.6]} 6... Nc6 {[%clk
0:02:59.2]} 7. a3 {[%clk 0:02:50.8]} 7... Na5 {[%clk 0:02:56.2]} 8. Qa4+ {[%clk
0:02:49.6]} 8... Bd7 {[%clk 0:02:56.6]} 9. Bb5 {[%clk 0:02:49.3]} 9... e6 {[%clk
0:02:56.9]} 10. Nf3 {[%clk 0:02:47.5]} 10... Nc4 {[%clk 0:02:43]} 11. b3 {[%clk
0:02:36.8]} 11... Nb6 {[%clk 0:02:36.3]} 12. Qa5 {[%clk 0:02:35.2]} 12... a6
{[%clk 0:02:25.3]} 13. Bxd7+ {[%clk 0:02:31.1]} 13... Nbxd7 {[%clk 0:02:26.2]}
14. Qxd8+ {[%clk 0:02:30.5]} 14... Rxd8 {[%clk 0:02:27.1]} 15. Bd2 {[%clk
0:02:30.4]} 15... Bd6 {[%clk 0:02:24.3]} 16. Rc1 {[%clk 0:02:28.6]} 16... b5
{[%clk 0:02:23.8]} 17. a4 {[%clk 0:02:26.1]} 17... b4 {[%clk 0:02:18.4]} 18. Ne2
{[%clk 0:02:20.7]} 18... Ke7 {[%clk 0:01:47]} 19. O-O {[%clk 0:02:16.4]} 19...
Rc8 {[%clk 0:01:45.1]} 20. Rxc8 {[%clk 0:02:05.7]} 20... Rxc8 {[%clk 0:01:46]}
21. Rc1 {[%clk 0:02:05.2]} 21... Rxc1+ {[%clk 0:01:45.6]} 22. Nxc1 {[%clk
0:01:59.7]} 22... Ne4 {[%clk 0:01:26.3]} 23. Nd3 {[%clk 0:01:58]} 23... a5
{[%clk 0:01:12.5]} 24. Kf1 {[%clk 0:01:56.8]} 24... g5 {[%clk 0:01:09.7]} 25. h3
{[%clk 0:01:56.4]} 25... h5 {[%clk 0:01:09.3]} 26. Ke2 {[%clk 0:01:56]} 26... f5
{[%clk 0:01:01.6]} 27. Nfe1 {[%clk 0:01:50.9]} 27... g4 {[%clk 0:00:54]} 28.
hxg4 {[%clk 0:01:50.2]} 28... fxg4 {[%clk 0:00:51.6]} 29. f3 {[%clk 0:01:34.8]}
29... Ng3+ {[%clk 0:00:39.3]} 30. Kf2 {[%clk 0:01:33.2]} 30... Nf5 {[%clk
0:00:39.9]} 31. f4 {[%clk 0:01:27.2]} 31... Nf6 {[%clk 0:00:33.7]} 32. Bc1
{[%clk 0:01:16.8]} 32... Ne4+ {[%clk 0:00:31.9]} 33. Ke2 {[%clk 0:00:56.5]}
33... Nfg3+ {[%clk 0:00:29.4]} 34. Kd1 {[%clk 0:00:56.5]} 34... h4 {[%clk
0:00:25.3]} 35. Bd2 {[%clk 0:00:41.6]} 35... h3 {[%clk 0:00:24]} 36. gxh3 {[%clk
0:00:41.6]} 36... gxh3 {[%clk 0:00:24.9]} 37. Nf3 {[%clk 0:00:41.9]} 37... Nf1
{[%clk 0:00:18.9]} 38. Be1 {[%clk 0:00:41.9]} 38... Nxe3+ {[%clk 0:00:18.9]} 39.
Ke2 {[%clk 0:00:42.2]} 39... Nf5 {[%clk 0:00:17.4]} 40. Nde5 {[%clk 0:00:37]}
40... Nxd4+ {[%clk 0:00:14.1]} 41. Nxd4 {[%clk 0:00:35.4]} 41... h2 {[%clk
0:00:14.9]} 42. Bh4+ {[%clk 0:00:32.1]} 42... Ke8 {[%clk 0:00:14.6]} 43. Nxe6
{[%clk 0:00:18.4]} 43... h1=Q {[%clk 0:00:14.7]} 0-1

[Event "Early-Titled-Tuesday-Blitz-February-20-2024"]
[Site "Chess.com"]
[Date "2024.02.20"]
[Round "10"]
[White "Beca95"]
[Black "Shield12"]
[Result "1-0"]
[WhiteElo "2909"]
[BlackElo "2966"]
[TimeControl "180+1"]
[EndTime "9:58:28 PST"]
[Termination "Beca95 won by resignation"]

1. Nf3 {[%clk 0:03:00.9]} 1... Nf6 {[%clk 0:03:00.9]} 2. c4 {[%clk 0:03:00.4]}
2... e6 {[%clk 0:03:00.7]} 3. Nc3 {[%clk 0:03:01]} 3... d5 {[%clk 0:03:01.6]} 4.
e3 {[%clk 0:03:01.5]} 4... Bd6 {[%clk 0:03:00.4]} 5. b3 {[%clk 0:02:59]} 5...
O-O {[%clk 0:03:00.2]} 6. Bb2 {[%clk 0:02:58.7]} 6... Re8 {[%clk 0:03:00.7]} 7.
Rg1 {[%clk 0:02:56.9]} 7... Ne4 {[%clk 0:02:40.2]} 8. Qc2 {[%clk 0:02:55.9]}
8... Nxc3 {[%clk 0:02:37.2]} 9. Qxc3 {[%clk 0:02:50.4]} 9... Bf8 {[%clk
0:02:34]} 10. d4 {[%clk 0:02:50.4]} 10... Nc6 {[%clk 0:02:30]} 11. a3 {[%clk
0:02:50.1]} 11... Bd7 {[%clk 0:02:22.4]} 12. O-O-O {[%clk 0:02:44.2]} 12... g6
{[%clk 0:02:21.1]} 13. h4 {[%clk 0:02:43.4]} 13... a6 {[%clk 0:02:13.2]} 14. h5
{[%clk 0:02:43.1]} 14... b5 {[%clk 0:02:13.1]} 15. cxb5 {[%clk 0:02:28.6]} 15...
axb5 {[%clk 0:02:12.8]} 16. b4 {[%clk 0:02:29.1]} 16... Ra4 {[%clk 0:01:49.5]}
17. hxg6 {[%clk 0:02:26.8]} 17... hxg6 {[%clk 0:01:49.3]} 18. Rh1 {[%clk
0:02:19.6]} 18... Qf6 {[%clk 0:01:47.7]} 19. Be2 {[%clk 0:02:00.4]} 19... Rea8
{[%clk 0:01:37.4]} 20. Rh4 {[%clk 0:01:55.6]} 20... Bg7 {[%clk 0:01:12.8]} 21.
Rdh1 {[%clk 0:01:54.9]} 21... Be8 {[%clk 0:01:09.6]} 22. Kd2 {[%clk 0:01:50.8]}
22... Ne7 {[%clk 0:01:05.6]} 23. Rf4 {[%clk 0:01:49.7]} 23... Nf5 {[%clk
0:01:02.6]} 24. g4 {[%clk 0:01:49.6]} 24... Nd6 {[%clk 0:00:48.4]} 25. Bd3
{[%clk 0:01:09.7]} 25... Qe7 {[%clk 0:00:46.2]} 26. g5 {[%clk 0:01:10]} 26...
R4a6 {[%clk 0:00:39]} 27. Ke2 {[%clk 0:01:02.5]} 27... Rc6 {[%clk 0:00:32.7]}
28. Qd2 {[%clk 0:00:56.2]} 28... Nc4 {[%clk 0:00:26.9]} 29. Bxc4 {[%clk
0:00:56.4]} 29... Rxc4 {[%clk 0:00:20.7]} 30. Rfh4 {[%clk 0:00:50.4]} 30... Bd7
{[%clk 0:00:13.7]} 31. Kf1 {[%clk 0:00:50.7]} 31... Bc8 {[%clk 0:00:10.5]} 32.
Kg2 {[%clk 0:00:39.3]} 32... e5 {[%clk 0:00:07.5]} 33. dxe5 {[%clk 0:00:37.7]}
33... Bg4 {[%clk 0:00:07.2]} 34. Nd4 {[%clk 0:00:24.3]} 34... Qxg5 {[%clk
0:00:06.8]} 35. f4 {[%clk 0:00:24.2]} 35... Qe7 {[%clk 0:00:03.3]} 36. Rxg4
{[%clk 0:00:23.9]} 36... c5 {[%clk 0:00:03.5]} 37. bxc5 {[%clk 0:00:23.8]} 37...
Qxc5 {[%clk 0:00:04]} 38. Rgh4 {[%clk 0:00:22.2]} 38... b4 {[%clk 0:00:04.3]}
39. Kg3 {[%clk 0:00:20.3]} 39... bxa3 {[%clk 0:00:04.3]} 40. Ba1 {[%clk
0:00:20.8]} 40... Qb5 {[%clk 0:00:02.4]} 41. Nxb5 {[%clk 0:00:19.9]} 1-0

[Event "Early-Titled-Tuesday-Blitz-February-20-2024"]
[Site "Chess.com"]
[Date "2024.02.20"]
[Round "10"]
[White "RobertoJBM"]
[Black "Viacheslav92"]
[Result "1/2-1/2"]
[WhiteElo "2800"]
[BlackElo "2557"]
[TimeControl "180+1"]
[EndTime "9:58:29 PST"]
[Termination "Game drawn by agreement"]

1. d4 {[%clk 0:02:57.7]} 1... Nf6 {[%clk 0:02:59.5]} 2. Nf3 {[%clk 0:02:57.4]}
2... g6 {[%clk 0:02:58.7]} 3. e3 {[%clk 0:02:55.3]} 3... Bg7 {[%clk 0:02:59.3]}
4. b3 {[%clk 0:02:55.7]} 4... O-O {[%clk 0:03:00.2]} 5. Bb2 {[%clk 0:02:55.6]}
5... d5 {[%clk 0:03:00.8]} 6. Be2 {[%clk 0:02:54.5]} 6... c5 {[%clk 0:03:01.4]}
7. dxc5 {[%clk 0:02:54.5]} 7... Qa5+ {[%clk 0:02:59.9]} 8. Nbd2 {[%clk
0:02:54.5]} 8... Qxc5 {[%clk 0:03:00.3]} 9. a3 {[%clk 0:02:54.6]} 9... Nc6
{[%clk 0:03:00]} 10. b4 {[%clk 0:02:54.5]} 10... Qb6 {[%clk 0:02:58.3]} 11. c4
{[%clk 0:02:54.4]} 11... dxc4 {[%clk 0:02:42.8]} 12. Bxc4 {[%clk 0:02:52.7]}
12... Qd8 {[%clk 0:02:43.4]} 13. Qb3 {[%clk 0:02:49.7]} 13... Bf5 {[%clk
0:02:30.6]} 14. O-O {[%clk 0:02:47.5]} 14... Ne4 {[%clk 0:02:31.1]} 15. Rfd1
{[%clk 0:02:41]} 15... Nxd2 {[%clk 0:02:18.7]} 16. Rxd2 {[%clk 0:02:40.2]} 16...
Qc7 {[%clk 0:02:17.3]} 17. Bxg7 {[%clk 0:02:36.4]} 17... Kxg7 {[%clk 0:02:18.2]}
18. Rc1 {[%clk 0:02:36.2]} 18... Rad8 {[%clk 0:02:11.9]} 19. Rxd8 {[%clk
0:02:28.5]} 19... Qxd8 {[%clk 0:02:12.8]} 20. Rd1 {[%clk 0:02:23.2]} 20... Qc7
{[%clk 0:02:10.5]} 21. h3 {[%clk 0:02:17.3]} 21... Ne5 {[%clk 0:02:00.2]} 22.
Qb2 {[%clk 0:02:08.1]} 22... f6 {[%clk 0:01:54.5]} 23. Nxe5 {[%clk 0:02:03.1]}
23... Qxe5 {[%clk 0:01:45.6]} 24. Qxe5 {[%clk 0:02:02.2]} 24... fxe5 {[%clk
0:01:46.5]} 25. Bd5 {[%clk 0:01:49.9]} 25... Rd8 {[%clk 0:01:38.1]} 26. Bf3
{[%clk 0:01:49.5]} 26... Rxd1+ {[%clk 0:01:34]} 27. Bxd1 {[%clk 0:01:50.4]}
27... Kf6 {[%clk 0:01:31.5]} 28. Kf1 {[%clk 0:01:49.9]} 28... Bd3+ {[%clk
0:01:22.5]} 29. Ke1 {[%clk 0:01:49.9]} 29... e4 {[%clk 0:01:18.3]} 30. Kd2
{[%clk 0:01:48.3]} 30... Bf1 {[%clk 0:01:14]} 31. g3 {[%clk 0:01:47.7]} 31...
Bxh3 {[%clk 0:01:11.7]} 32. Bb3 {[%clk 0:01:46.1]} 32... Ke5 {[%clk 0:01:09.4]}
33. Ba4 {[%clk 0:01:44.4]} 33... Bf5 {[%clk 0:01:07.2]} 34. Ke2 {[%clk
0:01:43.3]} 34... h5 {[%clk 0:01:05.7]} 35. Kf1 {[%clk 0:01:43.5]} 35... g5
{[%clk 0:01:04.6]} 36. Kg2 {[%clk 0:01:43.6]} 36... h4 {[%clk 0:01:05.1]} 37.
gxh4 {[%clk 0:01:43.2]} 37... gxh4 {[%clk 0:01:06]} 38. Bb3 {[%clk 0:01:42.9]}
38... Kd6 {[%clk 0:01:00.1]} 39. Bc4 {[%clk 0:01:42.5]} 39... Kc6 {[%clk
0:00:57.5]} 40. Be2 {[%clk 0:01:40.9]} 40... b6 {[%clk 0:00:54]} 41. Bc4 {[%clk
0:01:36]} 41... a5 {[%clk 0:00:52.8]} 42. Be2 {[%clk 0:01:35.6]} 42... Kd5
{[%clk 0:00:49.5]} 43. Ba6 {[%clk 0:01:34.2]} 43... e5 {[%clk 0:00:44.5]} 44.
Be2 {[%clk 0:01:31.9]} 44... Kd6 {[%clk 0:00:39.8]} 45. Bc4 {[%clk 0:01:31.2]}
45... Be6 {[%clk 0:00:37.5]} 46. Bxe6 {[%clk 0:00:27.5]} 46... Kxe6 {[%clk
0:00:38.4]} 47. bxa5 {[%clk 0:00:27.7]} 47... bxa5 {[%clk 0:00:37.4]} 48. Kh3
{[%clk 0:00:28.3]} 48... Kd5 {[%clk 0:00:37.6]} 49. Kxh4 {[%clk 0:00:28.8]}
49... Kc4 {[%clk 0:00:38.2]} 50. Kg4 {[%clk 0:00:29.2]} 50... Kb3 {[%clk
0:00:38.9]} 51. Kf5 {[%clk 0:00:29.8]} 51... Kxa3 {[%clk 0:00:37.4]} 52. Kxe4
{[%clk 0:00:30.4]} 52... Kb3 {[%clk 0:00:30.4]} 53. f4 {[%clk 0:00:30]} 53...
exf4 {[%clk 0:00:31.3]} 54. exf4 {[%clk 0:00:30.1]} 54... a4 {[%clk 0:00:31.9]}
55. f5 {[%clk 0:00:30.6]} 55... a3 {[%clk 0:00:32.6]} 56. f6 {[%clk 0:00:31.2]}
56... a2 {[%clk 0:00:33.3]} 57. f7 {[%clk 0:00:31.8]} 57... a1=Q {[%clk
0:00:33.5]} 58. f8=Q {[%clk 0:00:32.2]} 58... Qe1+ {[%clk 0:00:26.1]} 1/2-1/2